fUSD/lending_fUSD_20250125
["ID","MTS","AMOUNT","RATE_DAILY","PERIOD"]
[350365192,1737814254056,-500.0,0.00016849,2]
[350365193,1737814254066,-500.0,0.00016849,2]
[350365194,1737814254075,-500.0,0.00016849,2]
[350365195,1737814254084,-500.0,0.00016849,2]
[350365196,1737814254094,-645.53,0.00016849,2]
[350365197,1737814254103,-500.0,0.00016849,2]
[350365198,1737814254113,-184.18739159,0.00016886,2]
[350365199,1737814254122,-1000.0,0.000169,6]
[350365200,1737814254132,-163.25022423,0.00016945,2]
[350365201,1737814254141,-500.0,0.00016986,2]
[350365202,1737814254150,-500.0,0.00016986,2]
[350365203,1737814254161,-419.333922,0.00016986,2]
[350365204,1737814254170,-410.38,0.00016986,2]
[350365205,1737814254179,-500.0,0.00016986,2]
[350365206,1737814254189,-500.0,0.00016986,2]
[350365207,1737814254198,-500.0,0.00016986,2]
[350365208,1737814254207,-500.0,0.00016986,2]
[350365209,1737814254216,-309.289263,0.00016986,2]
[350365210,1737814254226,-500.0,0.00016986,2]
[350365211,1737814254235,-500.0,0.00016986,2]
[350365212,1737814254244,-500.0,0.00016986,2]
[350365213,1737814254253,-433.66,0.00016986,2]
[350365214,1737814254265,-500.0,0.00016986,2]
[350365215,1737814254274,-500.0,0.00016986,2]
[350365216,1737814254284,-500.0,0.00016986,2]
[350365217,1737814254297,-500.0,0.00016986,2]
[350365218,1737814254306,-500.0,0.00016986,2]
[350365219,1737814254315,-500.0,0.00016986,2]
[350365220,1737814254324,-760.42,0.00016986,2]
[350365221,1737814254333,-500.0,0.00016986,2]
[350365222,1737814254342,-500.0,0.00016986,2]
[350365223,1737814254352,-500.0,0.00016986,2]
[350365224,1737814254362,-500.0,0.00016986,2]
[350365225,1737814254372,-1432.64,0.00016986,2]
[350365226,1737814254382,-500.0,0.00016986,2]
[350365227,1737814254391,-500.0,0.00016986,2]
[350365228,1737814254401,-580.89,0.00016986,2]
[350365229,1737814254410,-450.54,0.00016986,2]
[350365230,1737814254419,-179.21,0.00016986,2]
[350365231,1737814254429,-500.0,0.00016986,2]
[350365232,1737814254439,-500.0,0.00016986,2]
[350365233,1737814254449,-500.0,0.00016986,2]
[350365234,1737814254459,-500.0,0.00016986,2]
[350365235,1737814254468,-500.0,0.00016986,2]
[350365236,1737814254477,-581.56,0.00016986,2]
[350365237,1737814254487,-500.0,0.00016986,2]
[350365238,1737814254497,-500.0,0.00016986,2]
[350365239,1737814254507,-515.15,0.00016986,2]
[350365240,1737814254517,-500.0,0.00016986,2]
[350365241,1737814254527,-500.0,0.00016986,2]
[350365242,1737814254537,-500.0,0.00016986,2]
[350365243,1737814254547,-500.0,0.00016986,2]
[350365244,1737814254556,-500.0,0.00016986,2]
[350365245,1737814254566,-1572.0,0.00016986,2]
[350365246,1737814254575,-500.0,0.00016986,2]
[350365247,1737814254584,-500.0,0.00016986,2]
[350365248,1737814254594,-592.45,0.00016986,2]
[350365249,1737814254603,-500.0,0.00016986,2]
[350365250,1737814254612,-500.0,0.00016986,2]
[350365251,1737814254623,-995.54,0.00016986,2]
[350365252,1737814254633,-500.0,0.00016986,2]
[350365253,1737814254643,-500.0,0.00016986,2]
[350365254,1737814254652,-477.57,0.00016986,2]
[350365255,1737814254664,-500.0,0.00016986,2]
[350365256,1737814254674,-500.0,0.00016986,2]
[350365257,1737814254682,-500.0,0.00016986,2]
[350365258,1737814254692,-500.0,0.00016986,2]
[350365259,1737814254701,-500.0,0.00016986,2]
[350365260,1737814254710,-1828.01,0.00016986,2]
[350365261,1737814254720,-500.0,0.00016986,2]
[350365262,1737814254729,-367.87711278,0.00016986,2]
[350365263,1737814254739,-500.0,0.00016986,2]
[350365264,1737814254748,-500.0,0.00016986,2]
[350365265,1737814254757,-611.47082113,0.00016986,2]
[350365266,1737814254766,-500.0,0.00016986,2]
[350365267,1737814254776,-500.0,0.00016986,2]
[350365268,1737814254785,-601.33895277,0.00016986,2]
[350365269,1737814254794,-174.62,0.00016986,2]
[350365270,1737814254803,-500.0,0.00016986,2]
[350365271,1737814254812,-500.0,0.00016986,2]
[350365272,1737814254821,-500.0,0.00016986,2]
[350365273,1737814254830,-500.0,0.00016986,2]
[350365274,1737814254839,-236.21,0.00016986,2]
[350365275,1737814254848,-500.0,0.00016986,2]
[350365276,1737814254858,-500.0,0.00016986,2]
[350365277,1737814254867,-600.0,0.00017,2]
[350365278,1737814254876,-4899.08796291,0.00017,2]
[350365279,1737814254885,-1461.5637482,0.00017,2]
[350365280,1737814254894,-15904.8642,0.00017023,2]
[350365281,1737814254904,-5381.1072,0.00017023,2]
[350365282,1737814254913,-500.0,0.00017122,2]
[350365283,1737814254922,-500.0,0.00017123,2]
[350365284,1737814254931,-500.0,0.00017123,2]
[350365285,1737814254941,-419.333922,0.00017123,2]
[350365286,1737814254950,-189.64,0.00017123,2]
[350365287,1737814254959,-500.0,0.00017123,2]
[350365288,1737814254968,-500.0,0.00017123,2]
[350365289,1737814254978,-500.0,0.00017123,2]
[350365290,1737814254987,-309.289263,0.00017123,2]
[350365291,1737814254996,-500.0,0.00017123,2]
[350365292,1737814255005,-500.0,0.00017123,2]
[350365293,1737814255014,-175.49,0.00017123,2]
[350365294,1737814255025,-500.0,0.00017123,2]
[350365295,1737814255034,-500.0,0.00017123,2]
[350365296,1737814255043,-500.0,0.00017123,2]
[350365297,1737814255052,-500.0,0.00017123,2]
[350365298,1737814255061,-500.0,0.00017123,2]
[350365299,1737814255070,-500.0,0.00017123,2]
[350365300,1737814255079,-760.42,0.00017123,2]
[350365301,1737814255088,-500.0,0.00017123,2]
[350365302,1737814255097,-375.62,0.00017123,2]
[350365303,1737814255106,-208.24,0.00017123,2]
[350365304,1737814255116,-500.0,0.00017123,2]
[350365305,1737814255126,-1432.64,0.00017123,2]
[350365306,1737814255137,-500.0,0.00017123,2]
[350365307,1737814255146,-500.0,0.00017123,2]
[350365308,1737814255156,-220.05,0.00017123,2]
[350365309,1737814255166,-480.91,0.00017123,2]
[350365310,1737814255177,-500.0,0.00017123,2]
[350365311,1737814255187,-500.0,0.00017123,2]
[350365312,1737814255200,-500.0,0.00017123,2]
[350365313,1737814255211,-500.0,0.00017123,2]
[350365314,1737814255223,-500.0,0.00017123,2]
[350365315,1737814255234,-500.0,0.00017123,2]
[350365316,1737814255245,-438.82120989,0.00017123,2]
[350365317,1737814255256,-500.0,0.00017123,2]
[350365318,1737814255267,-551.13189606,0.00017123,2]
[350365319,1737814255276,-500.0,0.00017123,2]
[350365320,1737814255287,-1572.0,0.00017123,2]
[350365321,1737814255300,-500.0,0.00017123,2]
[350365322,1737814255310,-500.0,0.00017123,2]
[350365323,1737814255322,-592.45,0.00017123,2]
[350365324,1737814255332,-500.0,0.00017123,2]
[350365325,1737814255343,-500.0,0.00017123,2]
[350365326,1737814255354,-995.54,0.00017123,2]
[350365327,1737814255365,-510.61,0.00017123,2]
[350365328,1737814255376,-611.35,0.00017123,2]
[350365329,1737814255387,-500.0,0.00017123,2]
[350365330,1737814255399,-500.0,0.00017123,2]
[350365331,1737814255410,-500.0,0.00017123,2]
[350365332,1737814255421,-500.0,0.00017123,2]
[350365333,1737814255434,-496.01,0.00017123,2]
[350365334,1737814255446,-1828.01,0.00017123,2]
[350365335,1737814255457,-500.0,0.00017123,2]
[350365336,1737814255469,-278.04,0.00017123,2]
[350365337,1737814255479,-500.0,0.00017123,2]
[350365338,1737814255489,-500.0,0.00017123,2]
[350365339,1737814255500,-500.0,0.00017123,2]
[350365340,1737814255511,-500.0,0.00017123,2]
[350365341,1737814255523,-500.0,0.00017123,2]
[350365342,1737814255533,-203.87,0.00017123,2]
[350365343,1737814255544,-562.08,0.00017123,2]
[350365344,1737814255555,-500.0,0.00017123,2]
[350365345,1737814255566,-500.0,0.00017123,2]
[350365346,1737814255579,-597.17207365,0.00017148,2]
[350365347,1737814255590,-11700.94181581,0.00017196,2]
[350365348,1737814255600,-51793.6718,0.00017197,2]
[350365349,1737814255612,-155.13,0.00017232,2]
[350365350,1737814255623,-500.0,0.0001726,2]
[350365351,1737814255633,-500.0,0.0001726,2]
[350365352,1737814255644,-500.0,0.0001726,2]
[350365353,1737814255655,-500.0,0.0001726,2]
[350365354,1737814255666,-500.0,0.0001726,2]
[350365355,1737814255678,-500.0,0.0001726,2]
[350365356,1737814255689,-500.0,0.0001726,2]
[350365357,1737814255700,-453.55472895,0.0001726,2]
[350365358,1737814255710,-500.0,0.0001726,2]
[350365359,1737814255720,-500.0,0.0001726,2]
[350365360,1737814255732,-500.0,0.0001726,2]
[350365361,1737814255743,-500.0,0.0001726,2]
[350365362,1737814255753,-500.0,0.0001726,2]
[350365363,1737814255764,-760.42,0.0001726,2]
[350365364,1737814255775,-500.0,0.0001726,2]
[350365365,1737814255787,-500.0,0.0001726,2]
[350365366,1737814255798,-1432.64,0.0001726,2]
[350365367,1737814255809,-500.0,0.0001726,2]
[350365368,1737814255819,-178.08,0.0001726,2]
[350365369,1737814255830,-420.18,0.0001726,2]
[350365370,1737814255841,-500.0,0.0001726,2]
[350365371,1737814255852,-500.0,0.0001726,2]
[350365372,1737814255863,-500.0,0.0001726,2]
[350365373,1737814255874,-500.0,0.0001726,2]
[350365374,1737814255886,-500.0,0.0001726,2]
[350365375,1737814255898,-500.0,0.0001726,2]
[350365376,1737814255910,-500.0,0.0001726,2]
[350365377,1737814255923,-1572.0,0.0001726,2]
[350365378,1737814255934,-429.11,0.0001726,2]
[350365379,1737814255947,-500.0,0.0001726,2]
[350365380,1737814255958,-592.45,0.0001726,2]
[350365381,1737814255968,-500.0,0.0001726,2]
[350365382,1737814255978,-500.0,0.0001726,2]
[350365383,1737814255989,-995.54,0.0001726,2]
[350365384,1737814255999,-500.0,0.0001726,2]
[350365385,1737814256010,-500.0,0.0001726,2]
[350365386,1737814256020,-500.0,0.0001726,2]
[350365387,1737814256032,-301.7,0.0001726,2]
[350365388,1737814256043,-1828.01,0.0001726,2]
[350365389,1737814256055,-500.0,0.0001726,2]
[350365390,1737814256067,-500.0,0.0001726,2]
[350365391,1737814256078,-500.0,0.0001726,2]
[350365392,1737814256088,-500.0,0.0001726,2]
[350365393,1737814256097,-500.0,0.0001726,2]
[350365394,1737814256107,-500.0,0.0001726,2]
[350365395,1737814256117,-500.0,0.0001726,2]
[350365396,1737814256127,-500.0,0.0001726,2]
[350365397,1737814256136,-500.0,0.00017397,2]
[350365398,1737814256147,-500.0,0.00017397,2]
[350365399,1737814256157,-500.0,0.00017397,2]
[350365400,1737814256168,-500.0,0.00017397,2]
[350365401,1737814256179,-500.0,0.00017397,2]
[350365402,1737814256191,-500.0,0.00017397,2]
[350365403,1737814256202,-500.0,0.00017397,2]
[350365404,1737814256212,-500.0,0.00017397,2]
[350365405,1737814256223,-500.0,0.00017397,2]
[350365406,1737814256233,-500.0,0.00017397,2]
[350365407,1737814256242,-500.0,0.00017397,2]
[350365408,1737814256252,-500.0,0.00017397,2]
[350365409,1737814256262,-760.42,0.00017397,2]
[350365410,1737814256271,-377.41500248,0.00017397,2]
[350365411,1737814256284,-1432.64,0.00017397,2]
[350365412,1737814256296,-500.0,0.00017397,2]
[350365413,1737814256307,-469.51,0.00017397,2]
[350365414,1737814256317,-643.47,0.00017397,2]
[350365415,1737814256328,-500.0,0.00017397,2]
[350365416,1737814256339,-500.0,0.00017397,2]
[350365417,1737814256349,-233.7780022,0.00017397,2]
[350365418,1737814256359,-464.49,0.00017397,2]
[350365419,1737814256371,-500.0,0.00017397,2]
[350365420,1737814256382,-500.0,0.00017397,2]
[350365421,1737814256392,-1572.0,0.00017397,2]
[350365422,1737814256402,-500.0,0.00017397,2]
[350365423,1737814256413,-592.45,0.00017397,2]
[350365424,1737814256423,-500.0,0.00017397,2]
[350365425,1737814256434,-500.0,0.00017397,2]
[350365426,1737814256444,-995.54,0.00017397,2]
[350365427,1737814256454,-500.0,0.00017397,2]
[350365428,1737814256464,-500.0,0.00017397,2]
[350365429,1737814256475,-500.0,0.00017397,2]
[350365430,1737814256484,-1828.01,0.00017397,2]
[350365431,1737814256495,-500.0,0.00017397,2]
[350365432,1737814256505,-500.0,0.00017397,2]
[350365433,1737814256515,-500.0,0.00017397,2]
[350365434,1737814256527,-471.07750102,0.00017397,2]
[350365435,1737814256538,-500.0,0.00017397,2]
[350365436,1737814256548,-500.0,0.00017397,2]
[350365437,1737814256559,-500.0,0.00017397,2]
[350365438,1737814256569,-500.0,0.00017397,2]
[350365439,1737814256581,-1000.0,0.00017499,2]
[350365440,1737814256591,-500.0,0.00017534,2]
[350365441,1737814256601,-500.0,0.00017534,2]
[350365442,1737814256612,-500.0,0.00017534,2]
[350365443,1737814256623,-500.0,0.00017534,2]
[350365444,1737814256633,-500.0,0.00017534,2]
[350365445,1737814256644,-500.0,0.00017534,2]
[350365446,1737814256654,-500.0,0.00017534,2]
[350365447,1737814256664,-500.0,0.00017534,2]
[350365448,1737814256674,-500.0,0.00017534,2]
[350365449,1737814256684,-500.0,0.00017534,2]
[350365450,1737814256694,-500.0,0.00017534,2]
[350365451,1737814256705,-500.0,0.00017534,2]
[350365452,1737814256716,-760.42,0.00017534,2]
[350365453,1737814256730,-1432.64,0.00017534,2]
[350365454,1737814256740,-500.0,0.00017534,2]
[350365455,1737814256753,-500.0,0.00017534,2]
[350365456,1737814256763,-500.0,0.00017534,2]
[350365457,1737814256774,-500.0,0.00017534,2]
[350365458,1737814256784,-500.0,0.00017534,2]
[350365459,1737814256796,-1572.0,0.00017534,2]
[350365460,1737814256807,-500.0,0.00017534,2]
[350365461,1737814256818,-592.45,0.00017534,2]
[350365462,1737814256828,-500.0,0.00017534,2]
[350365463,1737814256839,-500.0,0.00017534,2]
[350365464,1737814256850,-995.54,0.00017534,2]
[350365465,1737814256861,-500.0,0.00017534,2]
[350365466,1737814256872,-500.0,0.00017534,2]
[350365467,1737814256883,-500.0,0.00017534,2]
[350365468,1737814256893,-1828.01,0.00017534,2]
[350365469,1737814256903,-500.0,0.00017534,2]
[350365470,1737814256914,-500.0,0.00017534,2]
[350365471,1737814256927,-500.0,0.00017534,2]
[350365472,1737814256938,-500.0,0.00017534,2]
[350365473,1737814256950,-500.0,0.00017534,2]
[350365474,1737814256959,-500.0,0.00017534,2]
[350365475,1737814256969,-500.0,0.00017534,2]
[350365476,1737814256979,-500.0,0.00017671,2]
[350365477,1737814256989,-500.0,0.00017671,2]
[350365478,1737814257000,-500.0,0.00017671,2]
[350365479,1737814257010,-500.0,0.00017671,2]
[350365480,1737814257021,-500.0,0.00017671,2]
[350365481,1737814257031,-500.0,0.00017671,2]
[350365482,1737814257041,-500.0,0.00017671,2]
[350365483,1737814257051,-500.0,0.00017671,2]
[350365484,1737814257060,-500.0,0.00017671,2]
[350365485,1737814257070,-500.0,0.00017671,2]
[350365486,1737814257080,-500.0,0.00017671,2]
[350365487,1737814257089,-500.0,0.00017671,2]
[350365488,1737814257099,-760.42,0.00017671,2]
[350365489,1737814257110,-1432.64,0.00017671,2]
[350365490,1737814257119,-500.0,0.00017671,2]
[350365491,1737814257129,-500.0,0.00017671,2]
[350365492,1737814257139,-500.0,0.00017671,2]
[350365493,1737814257149,-500.0,0.00017671,2]
[350365494,1737814257159,-500.0,0.00017671,2]
[350365495,1737814257170,-1572.0,0.00017671,2]
[350365496,1737814257180,-500.0,0.00017671,2]
[350365497,1737814257190,-592.45,0.00017671,2]
[350365498,1737814257200,-500.0,0.00017671,2]
[350365499,1737814257211,-500.0,0.00017671,2]
[350365500,1737814257220,-995.54,0.00017671,2]
[350365501,1737814257231,-500.0,0.00017671,2]
[350365502,1737814257242,-500.0,0.00017671,2]
[350365503,1737814257253,-500.0,0.00017671,2]
[350365504,1737814257263,-1828.01,0.00017671,2]
[350365505,1737814257274,-500.0,0.00017671,2]
[350365506,1737814257286,-500.0,0.00017671,2]
[350365507,1737814257298,-500.0,0.00017671,2]
[350365508,1737814257309,-500.0,0.00017671,2]
[350365509,1737814257320,-500.0,0.00017671,2]
[350365510,1737814257330,-500.0,0.00017671,2]
[350365511,1737814257341,-500.0,0.00017671,2]
[350365512,1737814257351,-11700.94181581,0.00017725,2]
[350365513,1737814257363,-163.25022423,0.00017753,2]
[350365514,1737814257373,-500.0,0.00017808,2]
[350365515,1737814257384,-500.0,0.00017808,2]
[350365516,1737814257393,-500.0,0.00017808,2]
[350365517,1737814257404,-500.0,0.00017808,2]
[350365518,1737814257414,-500.0,0.00017808,2]
[350365519,1737814257424,-207.30647528,0.00017808,2]
[350365520,1737814257434,-500.0,0.00017808,2]
[350365521,1737814257443,-500.0,0.00017808,2]
[350365522,1737814257454,-500.0,0.00017808,2]
[350365523,1737814257464,-500.0,0.00017808,2]
[350365524,1737814257474,-500.0,0.00017808,2]
[350365525,1737814257483,-500.0,0.00017808,2]
[350365526,1737814257493,-760.42,0.00017808,2]
[350365527,1737814257503,-1432.64,0.00017808,2]
[350365528,1737814257513,-500.0,0.00017808,2]
[350365529,1737814257524,-215.82568121,0.00017808,2]
[350365530,1737814257535,-597.35060374,0.00017808,2]
[350365531,1737814257545,-500.0,0.00017808,2]
[350365532,1737814257555,-500.0,0.00017808,2]
[350365533,1737814257565,-1572.0,0.00017808,2]
[350365534,1737814257576,-500.0,0.00017808,2]
[350365535,1737814257588,-592.45,0.00017808,2]
[350365536,1737814257598,-500.0,0.00017808,2]
[350365537,1737814257609,-500.0,0.00017808,2]
[350365538,1737814257618,-995.54,0.00017808,2]
[350365539,1737814257629,-500.0,0.00017808,2]
[350365540,1737814257640,-500.0,0.00017808,2]
[350365541,1737814257651,-500.0,0.00017808,2]
[350365542,1737814257662,-1828.01,0.00017808,2]
[350365543,1737814257672,-500.0,0.00017808,2]
[350365544,1737814257682,-500.0,0.00017808,2]
[350365545,1737814257693,-500.0,0.00017808,2]
[350365546,1737814257703,-500.0,0.00017808,2]
[350365547,1737814257714,-500.0,0.00017808,2]
[350365548,1737814257724,-171.57,0.00017808,2]
[350365549,1737814257735,-500.0,0.00017808,2]
[350365550,1737814257745,-618.96662307,0.000179,2]
[350365551,1737814257755,-574.2,0.00017945,2]
[350365552,1737814257764,-500.0,0.00017945,2]
[350365553,1737814257776,-500.0,0.00017945,2]
[350365554,1737814257786,-500.0,0.00017945,2]
[350365555,1737814257796,-500.0,0.00017945,2]
[350365556,1737814257807,-500.0,0.00017945,2]
[350365557,1737814257817,-500.0,0.00017945,2]
[350365558,1737814257826,-500.0,0.00017945,2]
[350365559,1737814257836,-500.0,0.00017945,2]
[350365560,1737814257846,-266.68,0.00017945,2]
[350365561,1737814257856,-760.42,0.00017945,2]
[350365562,1737814257865,-1432.64,0.00017945,2]
[350365563,1737814257876,-500.0,0.00017945,2]
[350365564,1737814257886,-500.0,0.00017945,2]
[350365565,1737814257900,-394.55,0.00017945,2]
[350365566,1737814257911,-1572.0,0.00017945,2]
[350365567,1737814257922,-500.0,0.00017945,2]
[350365568,1737814257932,-592.45,0.00017945,2]
[350365569,1737814257944,-500.0,0.00017945,2]
[350365570,1737814257961,-500.0,0.00017945,2]
[350365571,1737814257971,-995.54,0.00017945,2]
[350365572,1737814257982,-500.0,0.00017945,2]
[350365573,1737814257992,-500.0,0.00017945,2]
[350365574,1737814258002,-500.0,0.00017945,2]
[350365575,1737814258012,-1828.01,0.00017945,2]
[350365576,1737814258022,-233.09,0.00017945,2]
[350365577,1737814258032,-500.0,0.00017945,2]
[350365578,1737814258043,-500.0,0.00017945,2]
[350365579,1737814258054,-431.7,0.00017945,2]
[350365580,1737814258064,-500.0,0.00017945,2]
[350365581,1737814258075,-500.0,0.00017945,2]
[350365582,1737814258085,-2311.505,0.00018029,2]
[350365583,1737814258096,-618.966623,0.00018038,2]
[350365584,1737814258107,-1509.07,0.00018054,2]
[350365585,1737814258117,-158.104945,0.00018079,2]
[350365586,1737814258127,-199.20290141,0.00018082,2]
[350365587,1737814258138,-187.87718188,0.00018082,2]
[350365588,1737814258149,-500.0,0.00018082,2]
[350365589,1737814258160,-500.0,0.00018082,2]
[350365590,1737814258170,-500.0,0.00018082,2]
[350365591,1737814258180,-500.0,0.00018082,2]
[350365592,1737814258190,-500.0,0.00018082,2]
[350365593,1737814258200,-760.42,0.00018082,2]
[350365594,1737814258210,-411.59505789,0.00018082,2]
[350365595,1737814258221,-1432.64,0.00018082,2]
[350365596,1737814258234,-500.0,0.00018082,2]
[350365597,1737814258244,-1572.0,0.00018082,2]
[350365598,1737814258256,-500.0,0.00018082,2]
[350365599,1737814258266,-592.45,0.00018082,2]
[350365600,1737814258276,-500.0,0.00018082,2]
[350365601,1737814258288,-317.44,0.00018082,2]
[350365602,1737814258300,-995.54,0.00018082,2]
[350365603,1737814258616,-500.0,0.00018082,2]
[350365604,1737814258627,-500.0,0.00018082,2]
[350365605,1737814258637,-500.0,0.00018082,2]
[350365606,1737814258647,-1828.01,0.00018082,2]
[350365607,1737814258657,-500.0,0.00018082,2]
[350365608,1737814258666,-500.0,0.00018082,2]
[350365609,1737814258675,-589.54621195,0.00018082,2]
[350365610,1737814258685,-500.0,0.00018082,2]
[350365611,1737814258694,-225.78,0.00018082,2]
[350365612,1737814258703,-500.0,0.00018164,2]
[350365613,1737814258713,-500.0,0.00018164,2]
[350365614,1737814258722,-618.966623,0.00018176,2]
[350365615,1737814258732,-245.52,0.00018219,2]
[350365616,1737814258742,-500.0,0.00018219,2]
[350365617,1737814258751,-500.0,0.00018219,2]
[350365618,1737814258762,-500.0,0.00018219,2]
[350365619,1737814258772,-500.0,0.00018219,2]
[350365620,1737814258781,-500.0,0.00018219,2]
[350365621,1737814258791,-760.42,0.00018219,2]
[350365622,1737814258801,-1432.64,0.00018219,2]
[350365623,1737814258810,-500.0,0.00018219,2]
[350365624,1737814258820,-1572.0,0.00018219,2]
[350365625,1737814258829,-500.0,0.00018219,2]
[350365626,1737814258838,-592.45,0.00018219,2]
[350365627,1737814258848,-500.0,0.00018219,2]
[350365628,1737814258857,-995.54,0.00018219,2]
[350365629,1737814258866,-500.0,0.00018219,2]
[350365630,1737814258876,-500.0,0.00018219,2]
[350365631,1737814258886,-500.0,0.00018219,2]
[350365632,1737814258894,-1828.01,0.00018219,2]
[350365633,1737814258902,-500.0,0.00018219,2]
[350365634,1737814258910,-500.0,0.00018219,2]
[350365635,1737814258918,-155.13,0.00018245,2]
[350365636,1737814258926,-11700.94181581,0.00018254,2]
[350365637,1737814258934,-500.59031224,0.00018267,2]
[350365638,1737814258942,-618.966623,0.00018314,2]
[350365639,1737814258951,-597.17207365,0.00018333,2]
[350365640,1737814258962,-500.0,0.00018356,2]
[350365641,1737814258971,-500.0,0.00018356,2]
[350365642,1737814258981,-258.1,0.00018356,2]
[350365643,1737814258993,-500.0,0.00018356,2]
[350365644,1737814259003,-500.0,0.00018356,2]
[350365645,1737814259013,-760.42,0.00018356,2]
[350365646,1737814259023,-1432.64,0.00018356,2]
[350365647,1737814259033,-249.16,0.00018356,2]
[350365648,1737814259043,-1572.0,0.00018356,2]
[350365649,1737814259053,-471.74,0.00018356,2]
[350365650,1737814259062,-592.45,0.00018356,2]
[350365651,1737814259072,-500.0,0.00018356,2]
[350365652,1737814259081,-995.54,0.00018356,2]
[350365653,1737814259091,-500.0,0.00018356,2]
[350365654,1737814259101,-469.89509141,0.00018356,2]
[350365655,1737814259110,-500.0,0.00018356,2]
[350365656,1737814259119,-1828.01,0.00018356,2]
[350365657,1737814259129,-500.0,0.00018356,2]
[350365658,1737814259139,-500.0,0.00018356,2]
[350365659,1737814259150,-618.966623,0.00018452,2]
[350365660,1737814259159,-150.0,0.00018484,2]
[350365661,1737814259170,-500.0,0.00018493,2]
[350365662,1737814259180,-500.0,0.00018493,2]
[350365663,1737814259190,-500.0,0.00018493,2]
[350365664,1737814259200,-500.0,0.00018493,2]
[350365665,1737814259209,-760.42,0.00018493,2]
[350365666,1737814259218,-1432.64,0.00018493,2]
[350365667,1737814259228,-1572.0,0.00018493,2]
[350365668,1737814259238,-592.45,0.00018493,2]
[350365669,1737814259248,-500.0,0.00018493,2]
[350365670,1737814259259,-995.54,0.00018493,2]
[350365671,1737814259269,-500.0,0.00018493,2]
[350365672,1737814259280,-500.0,0.00018493,2]
[350365673,1737814259292,-1828.01,0.00018493,2]
[350365674,1737814259302,-500.0,0.00018493,2]
[350365675,1737814259312,-500.0,0.00018493,2]
[350365676,1737814259321,-163.25022423,0.0001856,2]
[350365677,1737814259331,-618.966623,0.0001859,2]
[350365678,1737814259343,-500.0,0.0001863,2]
[350365679,1737814259353,-500.0,0.0001863,2]
[350365680,1737814259363,-500.0,0.0001863,2]
[350365681,1737814259373,-500.0,0.0001863,2]
[350365682,1737814259384,-760.42,0.0001863,2]
[350365683,1737814259394,-1432.64,0.0001863,2]
[350365684,1737814259405,-1572.0,0.0001863,2]
[350365685,1737814259415,-592.45,0.0001863,2]
[350365686,1737814259427,-500.0,0.0001863,2]
[350365687,1737814259436,-995.54,0.0001863,2]
[350365688,1737814259447,-500.0,0.0001863,2]
[350365689,1737814259456,-500.0,0.0001863,2]
[350365690,1737814259466,-1828.01,0.0001863,2]
[350365691,1737814259476,-500.0,0.0001863,2]